bitfinex/quotes_SOLUSD_20250717
["timestamp","ask_amount","ask_price","bid_price","bid_amount"]
[1752792031683,5.68117259,176.02,176.0,0.06]
[1752792031987,34.89812892,176.01,176.0,0.06]
[1752792032179,35.55812892,176.01,176.0,0.06]
[1752792032385,34.89812892,176.01,176.0,0.06]
[1752792032559,35.55812892,176.01,176.0,0.06]
[1752792034060,41.23962428,176.01,176.0,0.06]
[1752792034282,35.44149536,176.01,176.0,0.06]
[1752792037889,41.23962428,176.01,176.0,0.06]
[1752792038374,34.78149536,176.01,176.0,0.06]
[1752792038574,29.1,176.01,176.0,0.06]
[1752792040766,34.78149536,176.01,176.0,0.06]
[1752792041391,35.44149536,176.01,176.0,0.06]
[1752792042380,41.23962428,176.01,176.0,0.06]
[1752792042695,35.44149536,176.01,176.0,0.06]
[1752792043382,41.23962428,176.01,176.0,0.06]
[1752792043778,35.44149536,176.01,176.0,0.06]
[1752792046214,41.23962428,176.01,176.0,0.06]
[1752792047400,41.23962428,176.01,175.91,26.0]
[1752792047610,1.22847251,176.0,175.96,5.79812892]
[1752792047797,29.74,175.99,175.96,5.79812892]
[1752792048313,7.02660143,175.98,175.9,86.2503705]
[1752792048520,5.79812892,175.96,175.91,5.79812892]
[1752792048721,36.10660143,175.95,175.9,5.79812892]
[1752792048925,29.08,175.94,175.9,5.79812892]
[1752792049212,29.79,175.94,175.9,5.79812892]
[1752792049383,35.47390032,175.94,175.9,5.79812892]
[1752792049587,35.47390032,175.94,175.9,6.49812892]
[1752792049992,34.76390032,175.94,175.91,0.7]
[1752792050388,35.47390032,175.94,175.9,5.79812892]
[1752792050616,35.47390032,175.94,175.9,6.49812892]
[1752792050818,0.56847251,175.93,175.9,6.49812892]
[1752792051020,0.56847251,175.93,175.89,5.85812892]
[1752792051189,1.27847251,175.93,175.89,5.85812892]
[1752792051511,6.9628042,175.93,175.89,6.55812892]
[1752792052691,0.56847251,175.93,175.9,6.49812892]
[1752792052898,35.33232276,175.94,175.9,6.49812892]
[1752792053113,29.08,175.94,175.92,5.79812892]
[1752792053296,29.08,175.94,175.93,0.7]
[1752792054422,29.08,175.96,175.93,6.49812892]
[1752792054613,26.56847251,176.0,175.95,5.79812892]
[1752792054804,29.08,175.99,175.97,5.79812892]
[1752792055792,29.08,175.99,175.96,6.49812892]
[1752792055990,5.79812892,175.97,175.91,6.49812892]
[1752792056196,30.35847251,175.96,175.91,6.49812892]
[1752792056510,29.08,175.96,175.94,5.79812892]
[1752792056709,29.08,175.97,175.95,5.79812892]
[1752792056917,29.08,175.97,175.95,6.49812892]
[1752792057311,0.56847251,176.01,175.96,6.49812892]
[1752792057518,1.5859,176.05,176.0,5.79812892]
[1752792057698,0.03,176.01,175.97,0.56827868]
[1752792057893,5.70933762,176.08,176.0,43.27807602]
[1752792057894,0.56847251,176.06,176.0,43.27807602]
[1752792058092,0.59847251,176.08,176.01,0.56814953]
[1752792058397,0.59847251,176.08,176.03,5.79812892]
[1752792058398,6.98775172,176.08,176.03,5.79812892]
[1752792058608,6.50812892,176.07,176.02,5.79812892]
[1752792058796,0.56847251,176.06,176.03,5.79812892]
[1752792059110,0.59847251,176.08,176.04,0.7]
[1752792059323,1.30847251,176.08,176.04,6.49812892]
[1752792059793,0.71,176.07,176.03,5.79812892]
[1752792059998,0.59847251,176.08,176.04,5.79812892]
[1752792060192,6.27773555,176.08,176.04,5.79812892]
[1752792060419,0.71,176.07,176.04,5.79812892]
[1752792060602,0.71,176.07,176.03,5.79812892]
[1752792060808,6.27773555,176.08,176.03,0.7]
[1752792061011,0.71,176.07,176.03,0.7]
[1752792061225,0.56847251,176.06,176.03,5.79812892]
[1752792061403,0.71,176.05,176.02,5.79812892]
[1752792062207,0.56847251,176.04,176.0,0.7]
[1752792062405,0.56847251,176.04,176.01,5.79812892]
[1752792065526,0.56847251,176.04,176.0,0.7]
[1752792065527,1.27847251,176.04,176.0,5.79812892]
[1752792065708,1.27847251,176.04,176.0,6.49812892]
[1752792066028,6.95908039,176.04,176.0,6.49812892]
[1752792067022,6.95908039,176.04,176.0,5.79812892]
[1752792067628,6.24908039,176.04,176.0,5.79812892]
[1752792067826,0.71,176.03,175.98,6.38235558]
[1752792068026,0.71,176.03,175.99,6.49812892]
[1752792068229,6.24908039,176.04,175.99,6.38210698]
[1752792068418,6.24908039,176.04,176.0,5.79812892]
[1752792068729,6.95908039,176.04,176.0,5.79812892]
[1752792069458,5.79812892,176.02,175.96,5.79812892]
[1752792069610,1.27847251,176.01,175.97,5.79812892]
[1752792070435,1.27847251,176.01,175.97,0.7]
[1752792070630,1.27847251,176.01,175.97,6.49812892]
[1752792070831,1.27847251,176.01,175.97,0.7]
[1752792071144,6.96002087,176.01,175.97,6.49812892]
[1752792071740,0.71,176.0,175.96,11.48114454]
[1752792071911,0.71,176.0,175.96,12.18114454]
[1752792072107,0.56847251,176.01,175.97,5.79812892]
[1752792072313,0.56847251,176.01,175.97,6.49812892]
[1752792073435,0.56847251,176.02,175.99,5.79812892]
[1752792073637,0.56847251,176.04,176.01,5.79812892]
[1752792073844,0.56847251,176.05,176.02,0.7]
[1752792074034,0.71,176.04,175.99,0.7]
[1752792074222,0.56847251,176.03,176.0,5.79812892]
[1752792074415,0.71,176.03,176.0,5.79812892]
[1752792074615,0.56847251,176.04,176.0,5.79812892]
[1752792074832,1.27847251,176.04,176.0,0.7]
[1752792075031,6.24891267,176.05,176.01,5.79812892]
[1752792075223,35.58812892,176.06,176.02,6.49812892]
[1752792075224,36.03836126,176.06,176.02,6.49812892]
[1752792075428,36.03836126,176.06,176.0,5.79812892]
[1752792075429,0.71,176.05,176.0,5.79812892]
[1752792075727,41.12649018,176.06,176.0,5.79812892]
[1752792075728,1.27847251,176.04,176.0,5.79812892]
[1752792076029,0.56847251,176.04,176.0,6.49812892]
[1752792076420,0.56847251,176.04,176.01,0.7]
[1752792076629,0.56847251,176.05,176.01,0.7]
[1752792076932,6.95872985,176.05,176.01,0.7]
[1752792077442,6.95872985,176.05,176.0,5.79812892]
[1752792077641,0.71,176.04,176.0,6.49812892]
[1752792078018,0.71,176.04,175.98,0.7]
[1752792078213,5.79812892,176.02,175.97,5.79812892]
[1752792078428,1.27847251,176.01,175.96,6.49812892]
[1752792078625,1.27847251,176.01,175.96,0.7]
[1752792078940,5.68181818,176.0,175.96,6.49812892]
[1752792079139,6.33181818,176.0,175.96,6.49812892]
[1752792079916,6.33181818,176.0,175.96,0.7]
[1752792080330,6.33181818,176.0,175.96,6.49812892]
[1752792080538,1.21847251,175.99,175.94,5.79812892]
[1752792080847,0.65,175.98,175.93,0.7]
[1752792081019,6.36660143,175.99,175.94,5.79812892]
[1752792081020,6.25125934,175.97,175.94,5.79812892]
[1752792081219,6.90125934,175.97,175.94,5.79812892]
[1752792081930,6.90125934,175.97,175.93,6.49812892]
[1752792082137,5.68278683,175.97,175.94,6.49812892]
[1752792082649,0.56847251,175.96,175.93,5.79812892]
[1752792082948,2.17607251,176.0,175.95,5.79812892]
[1752792083157,5.68084985,176.03,175.99,5.79812892]
[1752792083326,7.01660143,176.02,175.97,0.7]
[1752792083525,0.65,176.01,175.95,0.7]
[1752792083727,0.56847251,176.0,175.97,5.79812892]
[1752792084030,1.21847251,176.0,175.96,5.79812892]
[1752792084425,6.9003618,176.0,175.97,5.79812892]
[1752792084740,6.25008013,176.01,175.98,5.79812892]
[1752792084949,6.24976432,176.02,176.0,5.79812892]
[1752792085439,6.24976432,176.02,175.99,5.79812892]
[1752792085745,6.24976432,176.02,175.99,6.49812892]
[1752792085935,6.24976432,176.02,175.99,5.79812892]
[1752792086249,0.65,176.01,175.98,5.79812892]
[1752792086947,0.56847251,176.0,175.98,5.79812892]
[1752792087164,1.21847251,176.01,175.98,5.79812892]
[1752792087540,0.65,176.0,175.98,5.79812892]
[1752792088245,0.65,176.0,175.96,0.7]
[1752792088449,0.65,176.0,175.98,5.79812892]
[1752792088958,0.56847251,175.99,175.97,5.79812892]
[1752792089121,1.21847251,176.0,175.97,5.79812892]
[1752792089549,6.25033495,176.0,175.98,5.79812892]
[1752792090150,5.68156862,176.01,175.99,5.79812892]
[1752792090331,6.24976144,176.02,175.99,6.49812892]
[1752792091454,6.24976144,176.02,176.0,5.79812892]
[1752792091857,29.62847251,176.04,176.01,5.79812892]
[1752792092151,29.62847251,176.04,176.02,5.79812892]
[1752792092152,29.06,176.04,176.02,5.79812892]
[1752792093132,35.39055737,176.04,176.01,5.79812892]
[1752792095858,34.74055737,176.04,175.99,0.7]
[1752792096041,35.95902988,176.04,176.01,5.79812892]
[1752792096634,35.95902988,176.04,176.0,0.7]
[1752792096635,35.30902988,176.04,176.02,5.79812892]
[1752792097037,34.74055737,176.04,176.0,0.7]
[1752792097257,34.74055737,176.04,176.02,5.79812892]
[1752792097654,29.06,176.04,176.03,5.79812892]
[1752792097853,34.74055111,176.04,176.02,0.7]
[1752792098056,34.74055111,176.04,176.03,5.79812892]
[1752792098245,5.68055111,176.04,176.03,5.79812892]
[1752792098758,5.68020448,176.05,176.02,5.79812892]
[1752792099254,6.33020448,176.05,176.02,5.79812892]
[1752792099433,0.56847251,176.04,176.01,5.79812892]
[1752792099629,0.65,176.03,176.01,5.79812892]
[1752792100235,6.89867699,176.05,176.01,5.79812892]
[1752792100440,0.65,176.04,176.01,5.79812892]
[1752792101060,5.68084985,176.03,176.01,5.79812892]
[1752792101256,6.33063016,176.04,176.01,5.79812892]
[1752792101654,6.36063016,176.04,176.01,5.79812892]
[1752792101954,6.36063016,176.04,175.99,0.76]
[1752792102256,6.36063016,176.04,176.01,5.79812892]
[1752792103045,5.71063016,176.04,176.01,5.79812892]
[1752792103567,6.36063016,176.04,176.01,5.79812892]
[1752792104757,0.65,176.03,176.01,5.79812892]
[1752792106267,6.33091394,176.03,176.01,5.79812892]
[1752792106443,5.68091394,176.03,176.01,5.79812892]
[1752792106646,5.71062498,176.04,176.02,6.49812892]
[1752792106841,5.71062498,176.04,176.03,5.79812892]
[1752792107151,0.03,176.04,176.02,5.79812892]
[1752792107357,0.03,176.04,176.02,6.49812892]
[1752792107755,0.03,176.04,176.03,6.49812892]
[1752792109353,0.03,176.04,176.03,12.17897877]
[1752792110063,0.03,176.04,176.03,6.49812892]
[1752792110248,0.03,176.04,176.03,12.17897877]
[1752792110662,0.03,176.04,176.03,6.49812892]
[1752792111851,0.03,176.04,176.03,0.7]
[1752792112057,0.03,176.04,176.03,6.49812892]
[1752792112258,0.03,176.04,176.02,5.79812892]
[1752792112457,0.68,176.03,176.0,5.79812892]
[1752792112672,0.03,176.04,175.99,0.74]
[1752792112673,0.68,176.02,175.99,5.85812892]
[1752792112963,0.59847251,176.04,176.0,6.47812892]
[1752792113262,0.03,176.04,176.02,5.79812892]
[1752792113463,0.03,176.04,176.03,6.47812892]
[1752792113654,0.03,176.04,176.03,5.79812892]
[1752792113856,0.03,176.04,176.01,5.79812892]
[1752792115559,0.68,176.03,175.99,26.06]
[1752792115766,0.68,176.03,176.0,5.79812892]
[1752792116861,0.68,176.03,175.99,0.06]
[1752792117192,6.36089377,176.03,176.0,5.79812892]
[1752792117871,6.36089377,176.03,175.99,0.06]
[1752792118059,6.36089377,176.03,176.0,5.79812892]
[1752792118850,6.36089377,176.03,175.99,0.06]
[1752792119168,6.27908473,176.04,176.01,5.79812892]
[1752792119474,6.39061222,176.04,176.01,5.79812892]
[1752792120174,6.36100669,176.03,176.0,5.79812892]
[1752792120967,0.03,176.04,176.02,5.79812892]
[1752792121170,0.03,176.04,176.03,5.79812892]
[1752792121558,0.03,176.04,176.03,6.47812892]
[1752792121761,0.03,176.04,176.01,0.56814953]
[1752792121955,0.03,176.04,176.03,6.47812892]
[1752792123560,0.03,176.04,176.03,12.15897877]
[1752792123759,0.03,176.04,176.02,5.6810914]
[1752792123975,0.03,176.04,176.03,5.79812892]
[1752792125959,0.03,176.04,176.01,6.92954164]
[1752792126160,0.03,176.04,176.0,31.68170021]
[1752792126382,0.03,176.04,176.02,5.79812892]
[1752792126956,0.71,176.04,176.02,5.79812892]
[1752792127276,0.68,176.03,175.99,118.58]
[1752792127471,0.03,176.04,175.99,117.9]
[1752792127673,0.03,176.04,176.01,5.79812892]
[1752792128080,0.03,176.04,176.0,0.68]
[1752792128279,0.68,176.03,176.0,5.79812892]
[1752792128476,0.68,176.03,176.01,5.79812892]
[1752792128674,0.03,176.04,176.01,5.79812892]
[1752792128982,0.71,176.04,176.01,5.79812892]
[1752792129682,6.39057486,176.04,176.01,5.79812892]
[1752792131084,6.39057486,176.04,175.99,89.54]
[1752792131256,6.39057486,176.04,176.01,5.79812892]
[1752792131456,0.03,176.04,176.01,5.79812892]
[1752792131673,0.68,176.03,176.01,5.79812892]
[1752792133768,0.68,176.03,175.99,0.74]
[1752792133970,0.03,176.04,176.01,5.79812892]
[1752792134171,0.71,176.04,176.01,5.79812892]
[1752792135283,6.39062433,176.04,176.01,5.79812892]
[1752792135485,5.71062433,176.04,176.01,5.79812892]
[1752792135782,6.39062433,176.04,175.99,0.74]
[1752792135963,6.39062433,176.04,176.0,5.79812892]
[1752792136164,6.39062433,176.04,175.99,0.74]
[1752792136377,6.39062433,176.04,176.01,5.79812892]
[1752792136781,0.68,176.03,176.01,5.79812892]
[1752792137081,6.36087291,176.03,176.01,5.79812892]
[1752792137667,0.68,176.02,175.99,0.06]
[1752792137884,0.68,176.02,176.0,5.79812892]
[1752792139717,5.68087291,176.03,176.0,5.79812892]
[1752792139987,6.94934542,176.03,176.0,5.79812892]
[1752792140168,6.38087291,176.03,176.0,5.79812892]
[1752792141970,0.7,176.03,176.01,5.79812892]
[1752792142177,0.03,176.04,176.02,5.79812892]
[1752792144689,0.03,176.04,176.03,7.0262139]
[1752792145076,0.03,176.04,176.03,6.45812892]
[1752792145277,0.03,176.04,176.03,5.79812892]
[1752792145587,0.03,176.04,176.02,5.79812892]
[1752792145784,0.03,176.04,176.01,0.66]
[1752792145960,0.03,176.04,176.02,5.79812892]
[1752792146164,0.03,176.04,176.03,5.79812892]
[1752792146669,0.03,176.04,176.03,6.45812892]
[1752792146869,0.03,176.04,176.03,0.66]
[1752792147081,0.03,176.04,176.03,5.79812892]
[1752792149986,0.03,176.04,176.03,0.66]
[1752792150188,0.03,176.04,176.03,6.45812892]
[1752792150372,0.73,176.04,176.0,5.85812892]
[1752792150574,0.7,176.03,176.0,5.85812892]
[1752792150774,0.7,176.03,176.0,0.06]
[1752792150973,0.7,176.03,176.0,5.85812892]
[1752792151198,0.59847251,176.04,176.0,5.85812892]
[1752792151199,7.06660143,176.02,176.0,0.06]
[1752792151384,6.49812892,176.01,176.0,0.06]
[1752792151808,0.7,176.01,176.0,0.06]
[1752792151968,0.56847251,176.02,176.0,0.06]
[1752792152288,5.68117259,176.02,176.0,0.06]
[1752792152489,6.38117259,176.02,176.0,0.06]
[1752792153376,7.6753,176.04,176.0,5.85812892]
[1752792153575,2.3557,176.04,176.0,6.51812892]
[1752792153992,7.3363179,176.04,176.0,6.51812892]
[1752792154172,0.7,176.03,176.0,5.85812892]
[1752792154668,1.6557,176.04,176.0,6.51812892]
[1752792154872,0.03,176.04,176.0,5.74173007]
[1752792155073,0.03,176.04,176.02,5.79812892]
[1752792155779,0.03,176.04,176.02,6.45812892]
[1752792155987,0.03,176.04,176.03,5.79812892]
[1752792161400,0.03,176.04,176.01,0.66]
[1752792161603,0.03,176.04,176.03,5.79812892]
[1752792161985,0.03,176.04,176.01,0.66]
[1752792162186,0.03,176.04,176.03,5.79812892]
[1752792164710,5.68084985,176.03,176.0,0.06]
[1752792164883,1.26847251,176.02,176.0,0.06]
[1752792165288,0.7,176.01,176.0,0.06]
[1752792166314,0.56847251,176.02,176.0,0.06]
[1752792166520,6.24967065,176.02,176.0,0.06]
[1752792166697,6.94967065,176.02,176.0,0.06]
[1752792166889,1.29847251,176.04,176.0,5.85812892]
[1752792167093,1.29847251,176.04,176.0,6.51812892]
[1752792167589,0.7,176.03,176.0,5.85812892]
[1752792167995,1.26847251,176.02,176.0,0.06]
[1752792168610,0.7,176.01,176.0,0.06]
[1752792169387,6.38149536,176.01,176.0,0.06]
[1752792170610,5.68149536,176.01,176.0,0.06]
[1752792170791,6.38149536,176.01,176.0,0.06]
[1752792174130,5.68126817,176.02,176.0,0.06]
[1752792174334,6.38126817,176.02,176.0,0.06]
[1752792174932,1.26847251,176.01,176.0,0.06]
[1752792176126,14.37739679,176.01,176.0,0.06]
[1752792176540,43.41739679,176.01,176.0,0.06]
[1752792177035,49.71089679,176.01,176.0,0.06]
[1752792178034,14.87276787,176.01,176.0,0.06]
[1752792178208,43.91276787,176.01,176.0,0.06]
[1752792179940,49.71089679,176.01,176.0,0.06]
[1752792181139,92.49558076,176.01,176.0,1e-08]
[1752792181331,42.78468397,176.0,175.99,1e-08]
[1752792181630,49.28281289,176.0,175.99,1e-08]
[1752792181809,34.76275999,176.0,175.99,1e-08]
[1752792182005,5.79812892,175.94,175.92,0.06]
[1752792182205,29.62847251,175.93,175.92,0.06]
[1752792182732,30.32847251,175.93,175.92,0.06]
[1752792183428,29.62847251,175.93,175.92,0.06]
[1752792183633,29.06,175.95,175.92,6.57812892]
[1752792183834,29.06,175.98,175.94,5.79812892]
[1752792184031,34.74248242,175.98,175.95,0.72]
[1752792184211,5.68248242,175.98,175.95,6.51812892]
[1752792184534,1.26847251,175.97,175.94,5.79812892]
[1752792184755,0.7,175.96,175.93,5.79812892]
[1752792184934,0.56847251,175.95,175.92,0.06]
[1752792185132,1.26847251,175.96,175.93,5.79812892]
[1752792185633,0.56847251,175.96,175.95,5.79812892]
[1752792186027,29.62847251,175.99,175.95,6.51812892]
[1752792186230,35.31065129,175.99,175.96,0.72]
[1752792186540,35.31065129,175.99,175.97,5.79812892]
[1752792187334,35.31062503,175.99,175.93,26.0]
[1752792187524,0.7,175.98,175.93,26.0]
[1752792187721,0.7,175.98,175.95,5.79812892]
[1752792188122,6.382592,175.98,175.95,5.79812892]
[1752792188324,6.382592,175.98,175.92,5.74409925]
[1752792188325,1.26847251,175.97,175.92,0.06]
[1752792188544,34.85812892,175.96,175.92,0.06]
[1752792188849,1.26847251,175.95,175.92,0.06]
[1752792190543,6.25207279,175.95,175.92,0.78]
[1752792190928,29.06,175.96,175.94,5.79812892]
[1752792191240,29.06,175.96,175.93,6.51812892]
[1752792191628,29.06,175.96,175.94,5.79812892]
[1752792192019,29.06,175.96,175.93,0.72]
[1752792192329,0.56847251,175.97,175.94,6.51812892]
[1752792192638,29.62847251,175.98,175.96,5.79812892]
[1752792192834,29.06,175.98,175.96,6.51812892]
[1752792193234,6.28004904,176.01,175.97,6.51812892]
[1752792193438,29.06,176.0,175.98,5.79812892]
[1752792193642,29.06,176.0,175.97,5.79812892]
[1752792194236,34.74186008,176.0,175.97,5.79812892]
[1752792194640,35.44186008,176.0,175.97,5.79812892]
[1752792194837,1.26847251,175.99,175.96,5.79812892]
[1752792195033,1.26847251,175.99,175.93,6.40400015]
[1752792195034,1.26847251,175.99,175.95,5.79812892]
[1752792195417,0.73,176.01,175.96,5.79812892]
[1752792195623,29.62847251,176.0,175.98,5.79812892]
[1752792195823,0.59847251,176.01,175.99,5.79812892]
[1752792196347,0.59847251,176.01,175.98,6.51812892]
[1752792196535,0.03,176.01,175.99,6.51812892]
[1752792197243,0.03,176.01,175.99,5.79812892]
[1752792198236,0.03,176.01,176.0,0.72]
[1752792198429,0.03,176.01,176.0,6.51812892]
[1752792198630,0.03,176.01,175.99,5.79812892]
[1752792199034,0.03,176.01,175.99,6.47812892]
[1752792200956,0.03,176.01,176.0,5.79812892]
[1752792201536,0.03,176.01,175.99,6.47812892]
[1752792201857,0.03,176.01,176.0,6.47812892]
[1752792202226,0.03,176.01,176.0,5.79812892]
[1752792202625,0.03,176.01,176.0,6.47812892]
[1752792208763,0.03,176.01,176.0,12.1599471]
[1752792209781,0.03,176.01,176.0,6.47812892]
[1752792209940,0.03,176.01,175.99,5.68202848]
[1752792209941,0.7,176.01,175.97,5.68250049]
[1752792210262,0.67,176.0,175.98,5.79812892]
[1752792210560,0.03,176.01,175.99,5.79812892]
[1752792212557,0.03,176.01,175.99,0.06]
[1752792212756,0.03,176.01,175.99,5.85812892]
[1752792213581,0.7,176.01,175.99,5.85812892]
[1752792213970,0.03,176.01,175.99,5.85812892]
[1752792214377,0.03,176.01,176.0,6.47812892]
[1752792214882,0.03,176.01,176.0,5.79812892]
[1752792215460,0.03,176.01,175.99,0.06]
[1752792215676,0.03,176.01,175.99,5.85812892]
[1752792216186,0.67,176.0,175.99,0.06]
[1752792216761,29.63847251,176.01,175.99,0.06]
[1752792217272,30.30847251,176.01,175.99,0.06]
[1752792218069,35.98999693,176.01,175.99,0.06]
[1752792219585,0.67,176.0,175.99,0.06]
[1752792220089,30.30847251,176.01,175.99,0.06]
[1752792221186,0.03,176.01,175.99,5.85812892]
[1752792221490,0.03,176.01,176.0,6.47812892]
[1752792223080,0.03,176.01,176.0,12.1599471]
[1752792224179,0.03,176.01,176.0,12.72812891]
[1752792225474,0.03,176.01,176.0,11.4799471]
[1752792225888,0.03,176.01,176.0,12.1599471]
[1752792226184,0.03,176.01,176.0,12.72812891]
[1752792228467,0.03,176.01,176.0,73.56625783]
[1752792229979,0.03,176.01,176.0,67.76812891]
[1752792230767,0.03,176.01,176.0,38.72812891]
[1752792230963,0.03,176.01,176.0,6.24999999]
[1752792231272,0.74,176.01,175.99,5.85812892]
[1752792231478,0.71,176.0,175.99,0.06]
[1752792232086,0.03,176.01,175.99,0.06]
[1752792232471,0.74,176.01,175.99,0.06]
[1752792232885,0.71,176.0,175.99,0.06]
[1752792235975,0.03,176.01,175.99,0.06]
[1752792236178,0.74,176.01,175.99,0.06]
[1752792238486,0.03,176.01,175.99,0.06]
[1752792238678,0.03,176.01,175.99,5.85812892]
[1752792240104,0.03,176.01,175.99,0.06]
[1752792240291,0.71,176.0,175.99,0.06]
[1752792241183,1.27847251,176.0,175.99,0.06]
[1752792241873,0.56847251,176.0,175.99,0.06]
[1752792242097,0.03,176.01,175.99,6.53812892]
[1752792242284,0.03,176.01,176.0,5.79812892]
[1752792243312,0.03,176.01,175.99,5.85812892]
[1752792243800,0.03,176.01,175.99,0.06]
[1752792243987,0.03,176.01,176.0,6.47812892]
[1752792244875,0.03,176.01,176.0,55.06094181]
[1752792245783,0.03,176.03,176.02,48.58281289]
[1752792246092,0.03,176.03,176.02,54.83210273]
[1752792246299,0.03,176.03,176.02,55.51210273]
[1752792246484,0.03,176.03,176.02,84.57210273]
[1752792247801,0.03,176.07,176.06,26.0]
[1752792248008,0.03,176.07,176.06,66.53801077]
[1752792248394,0.03,176.07,176.06,67.21801077]
[1752792249298,0.03,176.07,176.06,84.00269474]
[1752792253085,0.03,176.07,176.06,84.57068292]
[1752792262305,0.03,176.07,176.06,83.89068292]
[1752792262506,0.03,176.07,176.06,66.49801077]
[1752792262710,0.03,176.07,176.06,37.47801077]
[1752792263408,0.03,176.07,176.06,31.67988185]
[1752792263613,0.03,176.07,176.06,37.47801077]
[1752792263806,0.03,176.07,176.06,31.79812892]
[1752792264018,0.75,176.07,176.06,31.79812892]
[1752792265109,0.75,176.07,176.06,37.47801077]
[1752792265419,0.03,176.07,176.06,37.47801077]
[1752792267108,0.03,176.07,176.06,83.95269474]
[1752792267335,0.03,176.08,176.07,16.78468397]
[1752792267518,0.03,176.08,176.07,23.82076881]
[1752792268296,0.03,176.08,176.07,29.50032807]
[1752792268501,0.75,176.08,176.07,5.67955926]
[1752792268727,0.75,176.08,176.07,11.47768818]
[1752792269022,0.03,176.08,176.07,11.47768818]
[1752792269320,0.75,176.08,176.07,5.79812892]
[1752792269904,7.1967,176.08,176.04,5.79812892]
[1752792270105,0.72,176.07,176.03,5.79812892]
[1752792270306,0.72,176.07,176.05,5.79812892]
[1752792270505,0.72,176.07,176.06,5.79812892]
[1752792272004,0.03,176.08,176.06,5.79812892]
[1752792272205,0.03,176.08,176.07,5.79812892]
[1752792273121,0.03,176.08,176.07,11.47768818]
[1752792274902,0.03,176.08,176.07,12.0456441]
[1752792275505,0.03,176.08,176.07,12.7156441]
[1752792278322,0.03,176.08,176.07,29.50032807]
[1752792280715,0.03,176.08,176.07,28.83032807]
[1752792281331,0.03,176.08,176.07,12.0456441]
[1752792282414,0.75,176.08,176.07,12.0456441]
[1752792282617,0.75,176.08,176.07,11.47768818]
[1752792283210,0.75,176.08,176.07,5.79812892]
[1752792283526,0.03,176.08,176.07,11.47768818]
[1752792283725,0.03,176.08,176.07,12.0456441]
[1752792284038,0.03,176.08,176.07,5.79812892]
[1752792284417,0.75,176.08,176.07,5.79812892]
[1752792286134,0.75,176.08,176.07,11.47768818]
[1752792286335,0.75,176.08,176.07,37.47768818]
[1752792287330,0.03,176.08,176.07,37.47768818]
[1752792288033,0.03,176.08,176.07,31.79812892]
[1752792288345,0.75,176.08,176.07,31.79812892]
[1752792290036,0.75,176.08,176.04,29.08]
[1752792290037,0.75,176.08,176.04,0.06]
[1752792290228,0.75,176.08,176.05,5.79812892]
[1752792290535,2.2773,176.08,176.04,0.06]
[1752792290743,0.68,176.07,176.05,5.79812892]
[1752792291414,1.5573,176.08,176.05,5.79812892]
[1752792291611,0.68,176.06,176.04,0.06]
[1752792292042,6.35995582,176.06,176.04,0.06]
[1752792292246,12.72655725,176.06,176.04,0.06]
[1752792292425,0.68,176.05,176.04,0.06]
[1752792294027,6.36020448,176.05,176.04,0.06]
[1752792295630,12.1583334,176.05,176.04,0.06]
[1752792296848,6.36020448,176.05,176.04,0.06]
[1752792297633,12.1583334,176.05,176.04,0.06]
[1752792297827,18.3163334,176.05,176.04,0.06]
[1752792298144,18.3163334,176.05,175.99,0.06]
[1752792298145,60.16214461,176.05,175.99,0.06]
[1752792298330,5.79812892,176.0,175.99,0.06]
[1752792298843,6.47812892,176.0,175.99,0.06]
[1752792299038,40.24102892,176.0,175.92,0.06]
[1752792299354,5.79812892,175.95,175.92,0.06]
[1752792299523,34.83812892,175.95,175.92,0.06]
[1752792299861,0.68,175.94,175.92,0.06]
[1752792300527,0.68,175.97,175.93,5.79812892]
[1752792300727,0.68,175.97,175.96,5.79812892]
[1752792300928,29.04,175.98,175.96,5.79812892]
[1752792301129,29.04,175.98,175.97,5.79812892]